Workbook

Sheet Mivivienda
T1: Bono de Buen Pagador | U1: De | V1: 65200 | W1: hasta | X1: 93100 | Y1: 25700 | Z1: =IF($C$4<=X1,1,0) -> 0 | AB1: Sin devolución | AC1: Titular | AD1: 0.00032 | AF1: Con devolución | AG1: Titular | AH1: 0.000544
B2: SIMULADOR (*) MIVIVIENDA | U2: De | V2: =X1 -> 93100 | W2: hasta | X2: 139400 | Y2: 21400 | Z2: =IF($C$4<=X2,1,0) -> 0 | AC2: Titular + Conyugue | AD2: 0.00063 | AG2: Titular + Conyugue | AH2: 0.001071
U3: De | V3: =X2 -> 139400 | W3: hasta | X3: 232200 | Y3: 19600 | Z3: =IF($C$4<=X3,1,0) -> 1
B4: Monto del Bien | C4: 217732 | U4: De | V4: =X3 -> 232200 | W4: hasta | X4: 343900 | Y4: 10800 | Z4: =IF($C$4<=X4,1,0) -> 1
B5: Cuota Inicial | C5: 34833 | AB5: Seguro | AC5: Seguro CSF | AD5: 0.00028
B6: Bono del Buen Pagador | C6: =IF(C4<V1,0,IF(Z1=1,Y1,(IF(Z2=1,Y2,IF(Z3=1,Y3,IF(Z4=1,Y4,0)))))) -> 19600 | I6: Cuota Inicial (%) | J6: =IFERROR(C5/C4,"") -> 0.1599810777 | AC6: Endosado | AD6: 0
B7: Bono Verde | C7: 0
B8: Monto a Financiar | C8: =C4-(C5+C6+C7) -> 163299 | I8: Plazo (Meses) | J8: 300 | K8: =IF(J8>300, "El plazo máximo es 300 meses","") -> 
B10: Fecha de Desembolso | C10: 2022-08-01 | I10: Cuotas simples y/o dobles | J10: Julio | K10: 2
B11: Fecha de 1era Cuota | C11: =EDATE(C10,1) -> 2022-09-01 | J11: Diciembre | K11: 2
B13: TEA | C13: 0.125 | I13: Seguro del Bien | J13: Seguro CSF | K13: =+VLOOKUP(J13,$AC$5:$AD$6,2,0) -> 0.00028 | M13: Seg. de Desgravamen | N13: Titular | O13: =IF(O14=1,VLOOKUP(N13,$AG$1:$AH$2,2,0),VLOOKUP(N13,$AC$1:$AD$2,2,0)) -> 0.00032
B14: TEA Total | C14: =(1+(((1+C13)^(30/360)-1)+O13))^12-1 -> 0.1292852688 | I14: Portes | J14: 0 | N14: 2 | O14: 2
B16: Valor Cuota | C16: =(C8+((K13*C4)+J14)*Q20)/P20 -> 1570.396026
B18: TCEA | C18: 0.1347921935 | J18: (*)La simulación de cuotas es un referencial, siendo un aproximado del valor real calculado en los cronogramas de BT
V19: =C8-V20 -> 9.39
P20: =SUM(P22:P321) -> 107.5705136 | Q20: =SUM(Q22:Q321) -> 92.33676235 | V20: =SUM(V22:V383) -> 163289.61
B21: N° Cuota | C21: Fecha de pago | D21: Día | E21: Fecha de pago | F21: Días | G21: Dias Acumulados | H21: Saldo Inicial | I21: Amortización | J21: Interés | K21: Seguro de Desgravamen | L21: Seguro del Bien | M21: Portes | N21: Cuota | O21: Saldo Final | P21: Factor Cronograma | Q21: Factor Cronograma 2 | S21: Vector i,1 Cuota | T21: Vector i,2 Días Acum | U21: Vector i,3 Factor | V21: Vector i,4 Calculo VA
B22: 1 | C22: =C11 -> 2022-09-01 | D22: =IF(B22<=$J$8,WEEKDAY(C22,2),"") -> 4 | E22: =IF(D22=7,C22+1,C22) -> 2022-09-01 | F22: =E22-C10 -> 31 | G22: =F22 -> 31 | H22: =C8 -> 163299 | I22: =IF(B22>J$8,"",N22-M22-L22-J22-K22) -> -209.2427774 | J22: =IF(B22>J$8,"",((1+C$13)^(F22/360)-1)*H22) -> 1664.67602 | K22: =IF(B22>J$8,"",((1+O$13)^(F22/30)-1)*H22) -> 53.99782396 | L22: =IF(B22>J$8,"",C$4*K$13) -> 60.96496 | M22: =IF(B22>J$8,"",J$14) -> 0 | N22: =IF(B22>J$8,"",IF(B22=J$8,H22+J22+L22+M22,IF(AND(K$10=2,MONTH(E22)=7),2*C$16,IF(AND(K$11=2,MONTH(E22)=12),2*C$16,C$16)))) -> 1570.396026 | O22: =IF(B22=J$8,0,IF(B22>J$8,"",H22-I22)) -> 163508.2428 | P22: =IFERROR(IF(AND(MONTH(E22)=7,K$10=2),2/(1+C$14)^(G22/360),IF(AND(MONTH(E22)=12,K$11=2),2/(1+C$14)^(G22/360),1/(1+C$14)^(G22/360))),"") -> 0.9895848045 | Q22: =IFERROR(1/(1+C$14)^(G22/360),"") -> 0.9895848045 | S22: =IFERROR(I22+J22+K22+L22+M22,"") -> 1570.396026 | T22: =G22 -> 31 | U22: =IFERROR((1+C$18)^(T22/360),"") -> 1.010948209 | V22: =IFERROR(ROUND(S22/U22,2),"") -> 1553.39
B23: =IF($J$8-B22=0,"",B22+1) -> 2 | C23: =IF(B23>$J$8,"",EDATE(C22,1)) -> 2022-10-01 | D23: 6 | E23: =IF(D23=7,C23+1,C23) -> 2022-10-01 | F23: =IF(B23>J$8,"",E23-E22) -> 30 | G23: =IFERROR(F23+G22,"") -> 61 | H23: =IF(B23>J$8,"",O22) -> 163508.2428 | I23: -155.6682953 | J23: 1612.776724 | K23: 52.32263769 | L23: 60.96496 | M23: 0 | N23: 1570.396026 | O23: =IF(B23=J$8,0,IF(B23>J$8,"",H23-I23)) -> 163663.9111 | P23: 0.9796088786 | Q23: 0.9796088786 | S23: =IFERROR(I23+J23+K23+L23+M23,"") -> 1570.396026 | T23: =G23 -> 61 | U23: =IFERROR((1+C$18)^(T23/360),"") -> 1.021657362 | V23: =IFERROR(ROUND(S23/U23,2),"") -> 1537.11
B24: 3 | C24: 2022-11-01 | D24: 2 | E24: 2022-11-01 | F24: 31 | G24: 92 | H24: 163663.9111 | I24: -213.0833589 | J24: 1668.395937 | K24: 54.11848853 | L24: 60.96496 | M24: 0 | N24: 1570.396026 | O24: =IF(B24=J$8,0,IF(B24>J$8,"",H24-I24)) -> 163876.9944 | P24: 0.9694060607 | Q24: 0.9694060607 | S24: 1570.396026 | T24: 92 | U24: =IFERROR((1+C$18)^(T24/360),"") -> 1.032842679 | V24: =IFERROR(ROUND(S24/U24,2),"") -> 1520.46
B25: 4 | C25: 2022-12-01 | D25: 4 | E25: 2022-12-01 | F25: 30 | G25: 122 | H25: 163876.9944 | I25: 1410.972519 | J25: 1616.413935 | K25: 52.44063822 | L25: 60.96496 | M25: 0 | N25: 3140.792052 | O25: 162466.0219 | P25: 1.91926711 | Q25: 0.9596335551 | S25: 3140.792052 | T25: 122 | U25: 1.043783764 | V25: 3009.04
B26: 5 | C26: 2023-01-01 | D26: 7 | E26: 2023-01-02 | F26: 32 | G26: 154 | H26: 162466.0219 | I26: -255.9146887 | J26: 1709.890095 | K26: 55.45566027 | L26: 60.96496 | M26: 0 | N26: 1570.396026 | O26: 162721.9366 | P26: 0.9493181111 | Q26: 0.9493181111 | S26: 1570.396026 | T26: 154 | U26: 1.055582033 | V26: 1487.71
B27: 6 | C27: 2023-02-01 | D27: 3 | E27: 2023-02-01 | F27: 30 | G27: 184 | H27: 162721.9366 | I27: -147.660883 | J27: 1605.020929 | K27: 52.07101971 | L27: 60.96496 | M27: 0 | N27: 1570.396026 | O27: 162869.5975 | P27: 0.9397481105 | Q27: 0.9397481105 | S27: 1570.396026 | T27: 184 | U27: 1.066764 | V27: 1472.11
B28: 7 | C28: 2023-03-01 | D28: 3 | E28: 2023-03-01 | F28: 28 | G28: 212 | H28: 162869.5975 | I28: -38.09978164 | J28: 1498.887647 | K28: 48.64320097 | L28: 60.96496 | M28: 0 | N28: 1570.396026 | O28: 162907.6973 | P28: 0.9309031709 | Q28: 0.9309031709 | S28: 1570.396026 | T28: 212 | U28: 1.077307348 | V28: 1457.7
B29: 8 | C29: 2023-04-01 | D29: 6 | E29: 2023-04-01 | F29: 31 | G29: 243 | H29: 162907.6973 | I29: -205.1244315 | J29: 1660.687065 | K29: 53.8684325 | L29: 60.96496 | M29: 0 | N29: 1570.396026 | O29: 163112.8217 | P29: 0.9212076324 | Q29: 0.9212076324 | S29: 1570.396026 | T29: 243 | U29: 1.089101934 | V29: 1441.92
B30: 9 | C30: 2023-05-01 | D30: 1 | E30: 2023-05-01 | F30: 30 | G30: 273 | H30: 163112.8217 | I30: -151.6414929 | J30: 1608.876456 | K30: 52.19610294 | L30: 60.96496 | M30: 0 | N30: 1570.396026 | O30: 163264.4632 | P30: 0.9119210113 | Q30: 0.9119210113 | S30: 1570.396026 | T30: 273 | U30: 1.100638983 | V30: 1426.8
B31: 10 | C31: 2023-06-01 | D31: 4 | E31: 2023-06-01 | F31: 31 | G31: 304 | H31: 163264.4632 | I31: -208.8792877 | J31: 1664.32395 | K31: 53.98640372 | L31: 60.96496 | M31: 0 | N31: 1570.396026 | O31: 163473.3425 | P31: 0.9024231757 | Q31: 0.9024231757 | S31: 1570.396026 | T31: 304 | U31: 1.112689008 | V31: 1411.35
B32: 11 | C32: 2023-07-01 | D32: 6 | E32: 2023-07-01 | F32: 30 | G32: 334 | H32: 163473.3425 | I32: 1415.083141 | J32: 1612.432482 | K32: 52.31146959 | L32: 60.96496 | M32: 0 | N32: 3140.792052 | O32: 162058.2593 | P32: 1.786651839 | Q32: 0.8933259193 | S32: 3140.792052 | T32: 334 | U32: 1.124475919 | V32: 2793.12
B33: 12 | C33: 2023-08-01 | D33: 2 | E33: 2023-08-01 | F33: 31 | G33: 365 | H33: 162058.2593 | I33: -196.1843477 | J33: 1652.027864 | K33: 53.58755019 | L33: 60.96496 | M33: 0 | N33: 1570.396026 | O33: 162254.4437 | P33: 0.8840217552 | Q33: 0.8840217552 | S33: 1570.396026 | T33: 365 | U33: 1.136786916 | V33: 1381.43
B34: 13 | C34: 2023-09-01 | D34: 5 | E34: 2023-09-01 | F34: 31 | G34: 396 | H34: 162254.4437 | I34: -198.2491301 | J34: 1654.027774 | K34: 53.65242216 | L34: 60.96496 | M34: 0 | N34: 1570.396026 | O34: 162452.6928 | P34: 0.8748144959 | Q34: 0.8748144959 | S34: 1570.396026 | T34: 396 | U34: 1.149232696 | V34: 1366.47
B35: 14 | C35: 2023-10-01 | D35: 7 | E35: 2023-10-02 | F35: 31 | G35: 427 | H35: 162452.6928 | I35: -200.3356438 | J35: 1656.048733 | K35: 53.71797689 | L35: 60.96496 | M35: 0 | N35: 1570.396026 | O35: 162653.0285 | P35: 0.8657031319 | Q35: 0.8657031319 | S35: 1570.396026 | T35: 427 | U35: 1.161814736 | V35: 1351.68
B36: 15 | C36: 2023-11-01 | D36: 3 | E36: 2023-11-01 | F36: 30 | G36: 457 | H36: 162653.0285 | I36: -146.9591514 | J36: 1604.341248 | K36: 52.04896911 | L36: 60.96496 | M36: 0 | N36: 1570.396026 | O36: 162799.9876 | P36: 0.8569760473 | Q36: 0.8569760473 | S36: 1570.396026 | T36: 457 | U36: 1.174122044 | V36: 1337.51
B37: 16 | C37: 2023-12-01 | D37: 5 | E37: 2023-12-01 | F37: 30 | G37: 487 | H37: 162799.9876 | I37: 1421.940304 | J37: 1605.790792 | K37: 52.09599604 | L37: 60.96496 | M37: 0 | N37: 3140.792052 | O37: 161378.0473 | P37: 1.696673879 | Q37: 0.8483369397 | S37: 3140.792052 | T37: 487 | U37: 1.186559727 | V37: 2646.97
B38: 17 | C38: 2024-01-01 | D38: 1 | E38: 2024-01-01 | F38: 31 | G38: 518 | H38: 161378.0473 | I38: -189.0253165 | J38: 1645.093757 | K38: 53.36262555 | L38: 60.96496 | M38: 0 | N38: 1570.396026 | O38: 161567.0726 | P38: 0.8395013447 | Q38: 0.8395013447 | S38: 1570.396026 | T38: 518 | U38: 1.19955043 | V38: 1309.15
B39: 18 | C39: 2024-02-01 | D39: 4 | E39: 2024-02-01 | F39: 31 | G39: 549 | H39: 161567.0726 | I39: -191.0147523 | J39: 1647.020688 | K39: 53.42513025 | L39: 60.96496 | M39: 0 | N39: 1570.396026 | O39: 161758.0874 | P39: 0.8307577741 | Q39: 0.8307577741 | S39: 1570.396026 | T39: 549 | U39: 1.212683358 | V39: 1294.98
B40: 19 | C40: 2024-03-01 | D40: 5 | E40: 2024-03-01 | F40: 29 | G40: 578 | H40: 161758.0874 | I40: -82.68327168 | J40: 1542.077436 | K40: 50.03690153 | L40: 60.96496 | M40: 0 | N40: 1570.396026 | O40: 161840.7706 | P40: 0.822660766 | Q40: 0.822660766 | S40: 1570.396026 | T40: 578 | U40: 1.225099137 | V40: 1281.85
B41: 20 | C41: 2024-04-01 | D41: 1 | E41: 2024-04-01 | F41: 31 | G41: 609 | H41: 161840.7706 | I41: -193.8953433 | J41: 1649.810776 | K41: 53.51563355 | L41: 60.96496 | M41: 0 | N41: 1570.396026 | O41: 162034.666 | P41: 0.8140925934 | Q41: 0.8140925934 | S41: 1570.396026 | T41: 609 | U41: 1.238511778 | V41: 1267.97
B42: 21 | C42: 2024-05-01 | D42: 3 | E42: 2024-05-01 | F42: 30 | G42: 639 | H42: 162034.666 | I42: -140.6620074 | J42: 1598.24198 | K42: 51.85109312 | L42: 60.96496 | M42: 0 | N42: 1570.396026 | O42: 162175.328 | P42: 0.8058857905 | Q42: 0.8058857905 | S42: 1570.396026 | T42: 639 | U42: 1.251631552 | V42: 1254.68
B43: 22 | C43: 2024-06-01 | D43: 6 | E43: 2024-06-01 | F43: 31 | G43: 670 | H43: 162175.328 | I43: -197.4164608 | J43: 1653.221266 | K43: 53.6262611 | L43: 60.96496 | M43: 0 | N43: 1570.396026 | O43: 162372.7445 | P43: 0.7974923325 | Q43: 0.7974923325 | S43: 1570.396026 | T43: 670 | U43: 1.265334675 | V43: 1241.09
B44: 23 | C44: 2024-07-01 | D44: 1 | E44: 2024-07-01 | F44: 30 | G44: 700 | H44: 162372.7445 | I44: 1426.291169 | J44: 1601.576645 | K44: 51.95927823 | L44: 60.96496 | M44: 0 | N44: 3140.792052 | O44: 160946.4533 | P44: 1.578905751 | Q44: 0.7894528755 | S44: 3140.792052 | T44: 700 | U44: 1.278738589 | V44: 2456.16
B45: 24 | C45: 2024-08-01 | D45: 4 | E45: 2024-08-01 | F45: 31 | G45: 731 | H45: 160946.4533 | I45: -184.4829167 | J45: 1640.694072 | K45: 53.21991103 | L45: 60.96496 | M45: 0 | N45: 1570.396026 | O45: 161130.9362 | P45: 0.7812305695 | Q45: 0.7812305695 | S45: 1570.396026 | T45: 731 | U45: 1.292738486 | V45: 1214.78
B46: 25 | C46: 2024-09-01 | D46: 7 | E46: 2024-09-02 | F46: 32 | G46: 763 | H46: 161130.9362 | I46: -241.4077299 | J46: 1695.83885 | K46: 54.99994616 | L46: 60.96496 | M46: 0 | N46: 1570.396026 | O46: 161372.3439 | P46: 0.772832843 | Q46: 0.772832843 | S46: 1570.396026 | T46: 763 | U46: 1.307350781 | V46: 1201.2
B47: 26 | C47: 2024-10-01 | D47: 2 | E47: 2024-10-01 | F47: 29 | G47: 792 | H47: 161372.3439 | I47: -78.88656716 | J47: 1538.400054 | K47: 49.91757886 | L47: 60.96496 | M47: 0 | N47: 1570.396026 | O47: 161451.2305 | P47: 0.7653004022 | Q47: 0.7653004022 | S47: 1570.396026 | T47: 792 | U47: 1.320735791 | V47: 1189.03
B48: 27 | C48: 2024-11-01 | D48: 5 | E48: 2024-11-01 | F48: 31 | G48: 823 | H48: 161451.2305 | I48: -189.7955481 | J48: 1645.839789 | K48: 53.38682492 | L48: 60.96496 | M48: 0 | N48: 1570.396026 | O48: 161641.0261 | P48: 0.7573296489 | Q48: 0.7573296489 | S48: 1570.396026 | T48: 823 | U48: 1.335195481 | V48: 1176.15
B49: 28 | C49: 2024-12-01 | D49: 7 | E49: 2024-12-02 | F49: 31 | G49: 854 | H49: 161641.0261 | I49: 1378.602936 | J49: 1647.774572 | K49: 53.44958431 | L49: 60.96496 | M49: 0 | N49: 3140.792052 | O49: 160262.4231 | P49: 1.498883825 | Q49: 0.7494419126 | S49: 3140.792052 | T49: 854 | U49: 1.34981348 | V49: 2326.83
B50: 29 | C50: 2025-01-01 | D50: 3 | E50: 2025-01-01 | F50: 30 | G50: 884 | H50: 160262.4231 | I50: -122.6142293 | J50: 1580.76132 | K50: 51.2839754 | L50: 60.96496 | M50: 0 | N50: 1570.396026 | O50: 160385.0373 | P50: 0.7418868481 | Q50: 0.7418868481 | S50: 1570.396026 | T50: 884 | U50: 1.364112293 | V50: 1151.22
B51: 30 | C51: 2025-02-01 | D51: 6 | E51: 2025-02-01 | F51: 31 | G51: 915 | H51: 160385.0373 | I51: -178.5741794 | J51: 1634.970977 | K51: 53.0342685 | L51: 60.96496 | M51: 0 | N51: 1570.396026 | O51: 160563.6115 | P51: 0.7341599516 | Q51: 0.7341599516 | S51: 1570.396026 | T51: 915 | U51: 1.379046879 | V51: 1138.75
B52: 31 | C52: 2025-03-01 | D52: 6 | E52: 2025-03-01 | F52: 28 | G52: 943 | H52: 160563.6115 | I52: -16.18909687 | J52: 1477.665676 | K52: 47.95448718 | L52: 60.96496 | M52: 0 | N52: 1570.396026 | O52: 160579.8006 | P52: 0.7272500143 | Q52: 0.7272500143 | S52: 1570.396026 | T52: 943 | U52: 1.39267667 | V52: 1127.61
B53: 32 | C53: 2025-04-01 | D53: 2 | E53: 2025-04-01 | F53: 31 | G53: 974 | H53: 160579.8006 | I53: -180.6240054 | J53: 1636.956401 | K53: 53.09867057 | L53: 60.96496 | M53: 0 | N53: 1570.396026 | O53: 160760.4246 | P53: 0.7196755633 | Q53: 0.7196755633 | S53: 1570.396026 | T53: 974 | U53: 1.407923985 | V53: 1115.4
B54: 33 | C54: 2025-05-01 | D54: 4 | E54: 2025-05-01 | F54: 30 | G54: 1004 | H54: 160760.4246 | I54: -127.6856678 | J54: 1585.673398 | K54: 51.44333588 | L54: 60.96496 | M54: 0 | N54: 1570.396026 | O54: 160888.1103 | P54: 0.712420571 | Q54: 0.712420571 | S54: 1570.396026 | T54: 1004 | U54: 1.422838372 | V54: 1103.71
B55: 34 | C55: 2025-06-01 | D55: 7 | E55: 2025-06-02 | F55: 32 | G55: 1036 | H55: 160888.1103 | I55: -238.7691985 | J55: 1693.283204 | K55: 54.9170607 | L55: 60.96496 | M55: 0 | N55: 1570.396026 | O55: 161126.8795 | P55: 0.7047625077 | Q55: 0.7047625077 | S55: 1570.396026 | T55: 1036 | U55: 1.438921234 | V55: 1091.37
B56: 35 | C56: 2025-07-01 | D56: 2 | E56: 2025-07-01 | F56: 29 | G56: 1065 | H56: 161126.8795 | I56: 1493.925458 | J56: 1536.059985 | K56: 49.84164893 | L56: 60.96496 | M56: 0 | N56: 3140.792052 | O56: 159632.954 | P56: 1.395787033 | Q56: 0.6978935167 | S56: 3140.792052 | T56: 1065 | U56: 1.453653297 | V56: 2160.62
B57: 36 | C57: 2025-08-01 | D57: 5 | E57: 2025-08-01 | F57: 31 | G57: 1096 | H57: 159632.954 | I57: -170.6587242 | J57: 1627.304212 | K57: 52.78557829 | L57: 60.96496 | M57: 0 | N57: 1570.396026 | O57: 159803.6128 | P57: 0.6906248193 | Q57: 0.6906248193 | S57: 1570.396026 | T57: 1096 | U57: 1.469568197 | V57: 1068.61
B58: 37 | C58: 2025-09-01 | D58: 1 | E58: 2025-09-01 | F58: 31 | G58: 1127 | H58: 159803.6128 | I58: -172.454857 | J58: 1629.043913 | K58: 52.84200975 | L58: 60.96496 | M58: 0 | N58: 1570.396026 | O58: 159976.0676 | P58: 0.6834318268 | Q58: 0.6834318268 | S58: 1570.396026 | T58: 1127 | U58: 1.485657336 | V58: 1057.04
B59: 38 | C59: 2025-10-01 | D59: 3 | E59: 2025-10-01 | F59: 30 | G59: 1157 | H59: 159976.0676 | I59: -119.698105 | J59: 1577.93683 | K59: 51.19234164 | L59: 60.96496 | M59: 0 | N59: 1570.396026 | O59: 160095.7657 | P59: 0.6765422048 | Q59: 0.6765422048 | S59: 1570.396026 | T59: 1157 | U59: 1.501395166 | V59: 1045.96
B60: 39 | C60: 2025-11-01 | D60: 6 | E60: 2025-11-01 | F60: 31 | G60: 1188 | H60: 160095.7657 | I60: -175.5296808 | J60: 1632.022131 | K60: 52.93861551 | L60: 60.96496 | M60: 0 | N60: 1570.396026 | O60: 160271.2954 | P60: 0.6694958855 | Q60: 0.6694958855 | S60: 1570.396026 | T60: 1188 | U60: 1.517832754 | V60: 1034.63
B61: 40 | C61: 2025-12-01 | D61: 1 | E61: 2025-12-01 | F61: 30 | G61: 1218 | H61: 160271.2954 | I61: 1447.691445 | J61: 1580.848833 | K61: 51.28681453 | L61: 60.96496 | M61: 0 | N61: 3140.792052 | O61: 158823.604 | P61: 1.325493501 | Q61: 0.6627467506 | S61: 3140.792052 | T61: 1218 | U61: 1.533911424 | V61: 2047.57
B62: 41 | C62: 2026-01-01 | D62: 4 | E62: 2026-01-01 | F62: 31 | G62: 1249 | H62: 158823.604 | I62: -162.1405532 | J62: 1619.053668 | K62: 52.51795177 | L62: 60.96496 | M62: 0 | N62: 1570.396026 | O62: 158985.7445 | P62: 0.6558441136 | Q62: 0.6558441136 | S62: 1570.396026 | T62: 1249 | U62: 1.550705006 | V62: 1012.7
B63: 42 | C63: 2026-02-01 | D63: 7 | E63: 2026-02-02 | F63: 32 | G63: 1281 | H63: 158985.7445 | I63: -218.0982095 | J63: 1673.261563 | K63: 54.26771292 | L63: 60.96496 | M63: 0 | N63: 1570.396026 | O63: 159203.8427 | P63: 0.6487942109 | Q63: 0.6487942109 | S63: 1570.396026 | T63: 1281 | U63: 1.568233191 | V63: 1001.38
B64: 43 | C64: 2026-03-01 | D64: 7 | E64: 2026-03-02 | F64: 28 | G64: 1309 | H64: 159203.8427 | I64: -3.269041777 | J64: 1465.151734 | K64: 47.54837389 | L64: 60.96496 | M64: 0 | N64: 1570.396026 | O64: 159207.1118 | P64: 0.6426877388 | Q64: 0.6426877388 | S64: 1570.396026 | T64: 1309 | U64: 1.583732804 | V64: 991.58
B65: 44 | C65: 2026-04-01 | D65: 3 | E65: 2026-04-01 | F65: 30 | G65: 1339 | H65: 159207.1118 | I65: -111.8673811 | J65: 1570.352171 | K65: 50.94627576 | L65: 60.96496 | M65: 0 | N65: 1570.396026 | O65: 159318.9791 | P65: 0.6362088547 | Q65: 0.6362088547 | S65: 1570.396026 | T65: 1339 | U65: 1.600509565 | V65: 981.19
B66: 45 | C66: 2026-05-01 | D66: 5 | E66: 2026-05-01 | F66: 30 | G66: 1369 | H66: 159318.9791 | I66: -113.0065916 | J66: 1571.455584 | K66: 50.98207333 | L66: 60.96496 | M66: 0 | N66: 1570.396026 | O66: 159431.9857 | P66: 0.6297952837 | Q66: 0.6297952837 | S66: 1570.396026 | T66: 1369 | U66: 1.617464045 | V66: 970.9
B67: 46 | C67: 2026-06-01 | D67: 1 | E67: 2026-06-01 | F67: 31 | G67: 1400 | H67: 159431.9857 | I67: -168.543592 | J67: 1625.255534 | K67: 52.71912442 | L67: 60.96496 | M67: 0 | N67: 1570.396026 | O67: 159600.5293 | P67: 0.6232358427 | Q67: 0.6232358427 | S67: 1570.396026 | T67: 1400 | U67: 1.635172379 | V67: 960.39
B68: 47 | C68: 2026-07-01 | D68: 3 | E68: 2026-07-01 | F68: 30 | G68: 1430 | H68: 159600.5293 | I68: 1454.522246 | J68: 1574.232677 | K68: 51.07216938 | L68: 60.96496 | M68: 0 | N68: 3140.792052 | O68: 158146.0071 | P68: 1.233906103 | Q68: 0.6169530516 | S68: 3140.792052 | T68: 1430 | U68: 1.652494049 | V68: 1900.64
B69: 48 | C69: 2026-08-01 | D69: 6 | E69: 2026-08-01 | F69: 31 | G69: 1461 | H69: 158146.0071 | I69: -155.0090458 | J69: 1612.14622 | K69: 52.29389188 | L69: 60.96496 | M69: 0 | N69: 1570.396026 | O69: 158301.0161 | P69: 0.610527365 | Q69: 0.610527365 | S69: 1570.396026 | T69: 1461 | U69: 1.670585898 | V69: 940.03
B70: 49 | C70: 2026-09-01 | D70: 2 | E70: 2026-09-01 | F70: 31 | G70: 1492 | H70: 158301.0161 | I70: -156.6404703 | J70: 1613.726388 | K70: 52.34514848 | L70: 60.96496 | M70: 0 | N70: 1570.396026 | O70: 158457.6566 | P70: 0.6041686031 | Q70: 0.6041686031 | S70: 1570.396026 | T70: 1492 | U70: 1.688875821 | V70: 929.85
B71: 50 | C71: 2026-10-01 | D71: 4 | E71: 2026-10-01 | F71: 30 | G71: 1522 | H71: 158457.6566 | I71: -104.2352441 | J71: 1562.95986 | K71: 50.70645011 | L71: 60.96496 | M71: 0 | N71: 1570.396026 | O71: 158561.8918 | P71: 0.5980780274 | Q71: 0.5980780274 | S71: 1570.396026 | T71: 1522 | U71: 1.706766381 | V71: 920.1
B72: 51 | C72: 2026-11-01 | D72: 7 | E72: 2026-11-02 | F72: 32 | G72: 1554 | H72: 158561.8918 | I72: -213.4926526 | J72: 1668.800682 | K72: 54.12303633 | L72: 60.96496 | M72: 0 | N72: 1570.396026 | O72: 158775.3845 | P72: 0.5916490729 | Q72: 0.5916490729 | S72: 1570.396026 | T72: 1554 | U72: 1.726058585 | V72: 909.82
B73: 52 | C73: 2026-12-01 | D73: 2 | E73: 2026-12-01 | F73: 29 | G73: 1583 | H73: 158775.3845 | I73: 1517.070199 | J73: 1513.642637 | K73: 49.11425702 | L73: 60.96496 | M73: 0 | N73: 3140.792052 | O73: 157258.3143 | P73: 1.171765091 | Q73: 0.5858825457 | S73: 3140.792052 | T73: 1583 | U73: 1.743730438 | V73: 1801.19
B74: 53 | C74: 2027-01-01 | D74: 5 | E74: 2027-01-01 | F74: 31 | G74: 1614 | H74: 157258.3143 | I74: -145.6663408 | J74: 1603.097047 | K74: 52.0003599 | L74: 60.96496 | M74: 0 | N74: 1570.396026 | O74: 157403.9806 | P74: 0.5797804645 | Q74: 0.5797804645 | S74: 1570.396026 | T74: 1614 | U74: 1.762821162 | V74: 890.84
B75: 54 | C75: 2027-02-01 | D75: 1 | E75: 2027-02-01 | F75: 31 | G75: 1645 | H75: 157403.9806 | I75: -147.1994361 | J75: 1604.581975 | K75: 52.04852716 | L75: 60.96496 | M75: 0 | N75: 1570.396026 | O75: 157551.1801 | P75: 0.5737419376 | Q75: 0.5737419376 | S75: 1570.396026 | T75: 1645 | U75: 1.782120896 | V75: 881.2
B76: 55 | C76: 2027-03-01 | D76: 1 | E76: 2027-03-01 | F76: 28 | G76: 1673 | H76: 157551.1801 | I76: 12.43398978 | J76: 1449.942292 | K76: 47.05478391 | L76: 60.96496 | M76: 0 | N76: 1570.396026 | O76: 157538.7461 | P76: 0.5683418599 | Q76: 0.5683418599 | S76: 1570.396026 | T76: 1673 | U76: 1.799734464 | V76: 872.57
B77: 56 | C77: 2027-04-01 | D77: 4 | E77: 2027-04-01 | F77: 31 | G77: 1704 | H77: 157538.7461 | I77: -148.6178027 | J77: 1605.955779 | K77: 52.09308984 | L77: 60.96496 | M77: 0 | N77: 1570.396026 | O77: 157687.3639 | P77: 0.5624224684 | Q77: 0.5624224684 | S77: 1570.396026 | T77: 1704 | U77: 1.819438333 | V77: 863.12
B78: 57 | C78: 2027-05-01 | D78: 6 | E78: 2027-05-01 | F78: 30 | G78: 1734 | H78: 157687.3639 | I78: -96.39090619 | J78: 1555.362016 | K78: 50.45995644 | L78: 60.96496 | M78: 0 | N78: 1570.396026 | O78: 157783.7548 | P78: 0.5567527321 | Q78: 0.5567527321 | S78: 1570.396026 | T78: 1734 | U78: 1.838711964 | V78: 854.07
B79: 58 | C79: 2027-06-01 | D79: 2 | E79: 2027-06-01 | F79: 31 | G79: 1765 | H79: 157783.7548 | I79: -151.1964472 | J79: 1608.453407 | K79: 52.17410648 | L79: 60.96496 | M79: 0 | N79: 1570.396026 | O79: 157934.9512 | P79: 0.5509540436 | Q79: 0.5509540436 | S79: 1570.396026 | T79: 1765 | U79: 1.858842566 | V79: 844.82
B80: 59 | C80: 2027-07-01 | D80: 4 | E80: 2027-07-01 | F80: 30 | G80: 1795 | H80: 157934.9512 | I80: 1471.483794 | J80: 1557.804114 | K80: 50.5391844 | L80: 60.96496 | M80: 0 | N80: 3140.792052 | O80: 156463.4674 | P80: 1.090799839 | Q80: 0.5453999196 | S80: 3140.792052 | T80: 1795 | U80: 1.878533614 | V80: 1671.94
B81: 60 | C81: 2027-08-01 | D81: 7 | E81: 2027-08-02 | F81: 32 | G81: 1827 | H81: 156463.4674 | I81: -190.6913027 | J81: 1646.715602 | K81: 53.4067665 | L81: 60.96496 | M81: 0 | N81: 1570.396026 | O81: 156654.1587 | P81: 0.5395372209 | Q81: 0.5395372209 | S81: 1570.396026 | T81: 1827 | U81: 1.899767365 | V81: 826.63
B82: 61 | C82: 2027-09-01 | D82: 3 | E82: 2027-09-01 | F82: 30 | G82: 1857 | H82: 156654.1587 | I82: -85.86917843 | J82: 1545.170914 | K82: 50.1293308 | L82: 60.96496 | M82: 0 | N82: 1570.396026 | O82: 156740.0279 | P82: 0.534098189 | Q82: 0.534098189 | S82: 1570.396026 | T82: 1857 | U82: 1.919891937 | V82: 817.96
B83: 62 | C83: 2027-10-01 | D83: 5 | E83: 2027-10-01 | F83: 30 | G83: 1887 | H83: 156740.0279 | I83: -86.74363413 | J83: 1546.017891 | K83: 50.15680894 | L83: 60.96496 | M83: 0 | N83: 1570.396026 | O83: 156826.7716 | P83: 0.5287139875 | Q83: 0.5287139875 | S83: 1570.396026 | T83: 1887 | U83: 1.940229691 | V83: 809.39
B84: 63 | C84: 2027-11-01 | D84: 1 | E84: 2027-11-01 | F84: 31 | G84: 1918 | H84: 156826.7716 | I84: -141.1244807 | J84: 1598.697885 | K84: 51.85766234 | L84: 60.96496 | M84: 0 | N84: 1570.396026 | O84: 156967.896 | P84: 0.523207328 | Q84: 0.523207328 | S84: 1570.396026 | T84: 1918 | U84: 1.96147173 | V84: 800.62
B85: 64 | C85: 2027-12-01 | D85: 3 | E85: 2027-12-01 | F85: 30 | G85: 1948 | H85: 156967.896 | I85: 1481.331879 | J85: 1548.265487 | K85: 50.22972673 | L85: 60.96496 | M85: 0 | N85: 3140.792052 | O85: 155486.5642 | P85: 1.035865833 | Q85: 0.5179329164 | S85: 3140.792052 | T85: 1948 | U85: 1.982249947 | V85: 1584.46
B86: 65 | C86: 2028-01-01 | D86: =IF(B86<=$J$8,WEEKDAY(C86,2),"") -> 6 | E86: 2028-01-01 | F86: 31 | G86: 1979 | H86: 155486.5642 | I86: =IF(B86>J$8,"",N86-M86-L86-J86-K86) -> -127.0191929 | J86: =IF(B86>J$8,"",((1+C$13)^(F86/360)-1)*H86) -> 1585.035761 | K86: =IF(B86>J$8,"",((1+O$13)^(F86/30)-1)*H86) -> 51.41449806 | L86: =IF(B86>J$8,"",C$4*K$13) -> 60.96496 | M86: =IF(B86>J$8,"",J$14) -> 0 | N86: =IF(B86>J$8,"",IF(B86=J$8,H86+J86+L86+M86,IF(AND(K$10=2,MONTH(E86)=7),2*C$16,IF(AND(K$11=2,MONTH(E86)=12),2*C$16,C$16)))) -> 1570.396026 | O86: 155613.5834 | P86: =IFERROR(IF(AND(MONTH(E86)=7,K$10=2),2/(1+C$14)^(G86/360),IF(AND(MONTH(E86)=12,K$11=2),2/(1+C$14)^(G86/360),1/(1+C$14)^(G86/360))),"") -> 0.5125385439 | Q86: =IFERROR(1/(1+C$14)^(G86/360),"") -> 0.5125385439 | S86: 1570.396026 | T86: =G86 -> 1979 | U86: =IFERROR((1+C$18)^(T86/360),"") -> 2.003952033 | V86: =IFERROR(ROUND(S86/U86,2),"") -> 783.65
B87: 66 | C87: =IF(B87>$J$8,"",EDATE(C86,1)) -> 2028-02-01 | D87: 2 | E87: =IF(D87=7,C87+1,C87) -> 2028-02-01 | F87: =IF(B87>J$8,"",E87-E86) -> 31 | G87: =IFERROR(F87+G86,"") -> 2010 | H87: =IF(B87>J$8,"",O86) -> 155613.5834 | I87: -128.3560324 | J87: 1586.330599 | K87: 51.4564993 | L87: 60.96496 | M87: 0 | N87: 1570.396026 | O87: 155741.9394 | P87: 0.5072003547 | Q87: 0.5072003547 | S87: =IFERROR(I87+J87+K87+L87+M87,"") -> 1570.396026 | T87: 2010 | U87: 2.025891718 | V87: 775.16
B88: 67 | C88: 2028-03-01 | D88: 3 | E88: 2028-03-01 | F88: 29 | G88: 2039 | H88: 155741.9394 | I88: -23.46894967 | J88: 1484.724099 | K88: 48.17591634 | L88: 60.96496 | M88: 0 | N88: 1570.396026 | O88: =IF(B88=J$8,0,IF(B88>J$8,"",H88-I88)) -> 155765.4083 | P88: 0.5022569098 | Q88: 0.5022569098 | S88: 1570.396026 | T88: 2039 | U88: 2.046633343 | V88: 767.31
B89: 68 | C89: 2028-04-01 | D89: 6 | E89: 2028-04-01 | F89: 31 | G89: 2070 | H89: 155765.4083 | I89: -129.9539456 | J89: 1587.878309 | K89: 51.50670303 | L89: 60.96496 | M89: 0 | N89: 1570.396026 | O89: 155895.3623 | P89: 0.4970258059 | Q89: 0.4970258059 | S89: 1570.396026 | T89: 2070 | U89: 2.069040311 | V89: 759
B90: 69 | C90: 2028-05-01 | D90: 1 | E90: 2028-05-01 | F90: 30 | G90: 2100 | H90: 155895.3623 | I90: -78.14191351 | J90: 1537.686464 | K90: 49.88651593 | L90: 60.96496 | M90: 0 | N90: 1570.396026 | O90: 155973.5042 | P90: 0.4920153281 | Q90: 0.4920153281 | S90: 1570.396026 | T90: 2100 | U90: 2.090958021 | V90: 751.04
B91: 70 | C91: 2028-06-01 | D91: 4 | E91: 2028-06-01 | F91: 31 | G91: 2131 | H91: 155973.5042 | I91: -132.1440932 | J91: 1589.999646 | K91: 51.57551376 | L91: 60.96496 | M91: 0 | N91: 1570.396026 | O91: 156105.6483 | P91: 0.4868908923 | Q91: 0.4868908923 | S91: 1570.396026 | T91: 2131 | U91: 2.113850265 | V91: 742.91
B92: 71 | C92: 2028-07-01 | D92: 6 | E92: 2028-07-01 | F92: 30 | G92: 2161 | H92: 156105.6483 | I92: 1490.112648 | J92: 1539.760637 | K92: 49.95380745 | L92: 60.96496 | M92: 0 | N92: 3140.792052 | O92: 154615.5356 | P92: 0.9639651677 | Q92: 0.4819825839 | S92: 3140.792052 | T92: 2161 | U92: 2.136242655 | V92: 1470.24
B93: 72 | C93: 2028-08-01 | D93: 2 | E93: 2028-08-01 | F93: 31 | G93: 2192 | H93: 154615.5356 | I93: -117.8518744 | J93: 1576.156464 | K93: 51.12647643 | L93: 60.96496 | M93: 0 | N93: 1570.396026 | O93: 154733.3875 | P93: 0.476962641 | Q93: 0.476962641 | S93: 1570.396026 | T93: 2192 | U93: 2.159630685 | V93: 727.16
B94: 73 | C94: 2028-09-01 | D94: 5 | E94: 2028-09-01 | F94: 31 | G94: 2223 | H94: 154733.3875 | I94: -119.0922307 | J94: 1577.35785 | K94: 51.16544632 | L94: 60.96496 | M94: 0 | N94: 1570.396026 | O94: 154852.4797 | P94: 0.4719949819 | Q94: 0.4719949819 | S94: 1570.396026 | T94: 2223 | U94: 2.183274772 | V94: 719.28
B95: 74 | C95: 2028-10-01 | D95: 7 | E95: 2028-10-02 | F95: 31 | G95: 2254 | H95: 154852.4797 | I95: -120.3456413 | J95: 1578.571881 | K95: 51.20482636 | L95: 60.96496 | M95: 0 | N95: 1570.396026 | O95: 154972.8254 | P95: 0.4670790619 | Q95: 0.4670790619 | S95: 1570.396026 | T95: 2254 | U95: 2.207177719 | V95: 711.5
B96: 75 | C96: 2028-11-01 | D96: 3 | E96: 2028-11-01 | F96: 30 | G96: 2284 | H96: 154972.8254 | I96: -68.74718473 | J96: 1528.586947 | K96: 49.59130412 | L96: 60.96496 | M96: 0 | N96: 1570.396026 | O96: 155041.5726 | P96: 0.4623704749 | Q96: 0.4623704749 | S96: 1570.396026 | T96: 2284 | U96: 2.230558743 | V96: 704.04
B97: 76 | C97: 2028-12-01 | D97: 5 | E97: 2028-12-01 | F97: 30 | G97: 2314 | H97: 155041.5726 | I97: 1500.948749 | J97: 1529.26504 | K97: 49.61330322 | L97: 60.96496 | M97: 0 | N97: 3140.792052 | O97: 153540.6238 | P97: 0.9154187097 | Q97: 0.4577093549 | S97: 3140.792052 | T97: 2314 | U97: 2.254187446 | V97: 1393.31
B98: 77 | C98: 2029-01-01 | D98: 1 | E98: 2029-01-01 | F98: 31 | G98: 2345 | H98: 153540.6238 | I98: -106.5387444 | J98: 1565.198773 | K98: 50.77103703 | L98: 60.96496 | M98: 0 | N98: 1570.396026 | O98: 153647.1626 | P98: 0.4529422225 | Q98: 0.4529422225 | S98: 1570.396026 | T98: 2345 | U98: 2.27886676 | V98: 689.11
B99: 78 | C99: 2029-02-01 | D99: 4 | E99: 2029-02-01 | F99: 31 | G99: 2376 | H99: 153647.1626 | I99: -107.6600333 | J99: 1566.284833 | K99: 50.80626603 | L99: 60.96496 | M99: 0 | N99: 1570.396026 | O99: 153754.8226 | P99: 0.4482247407 | Q99: 0.4482247407 | S99: 1570.396026 | T99: 2376 | U99: 2.303816269 | V99: 681.65
B100: 79 | C100: 2029-03-01 | D100: 4 | E100: 2029-03-01 | F100: 28 | G100: 2404 | H100: 153754.8226 | I100: 48.50567159 | J100: 1415.004444 | K100: 45.92095058 | L100: 60.96496 | M100: 0 | N100: 1570.396026 | O100: 153706.3169 | P100: 0.4440060349 | Q100: 0.4440060349 | S100: 1570.396026 | T100: 2404 | U100: 2.326586006 | V100: 674.98
B101: 80 | C101: 2029-04-01 | D101: 7 | E101: 2029-04-02 | F101: 32 | G101: 2436 | H101: 153706.3169 | I101: -160.7322756 | J101: 1617.697693 | K101: 52.46564908 | L101: 60.96496 | M101: 0 | N101: 1570.396026 | O101: 153867.0492 | P101: 0.4392332554 | Q101: 0.4392332554 | S101: 1570.396026 | T101: 2436 | U101: 2.352884257 | V101: 667.43
B102: 81 | C102: 2029-05-01 | D102: 2 | E102: 2029-05-01 | F102: 29 | G102: 2465 | H102: 153867.0492 | I102: -5.015222936 | J102: 1466.850336 | K102: 47.5959534 | L102: 60.96496 | M102: 0 | N102: 1570.396026 | O102: 153872.0644 | P102: 0.434952254 | Q102: 0.434952254 | S102: 1570.396026 | T102: 2465 | U102: 2.37697372 | V102: 660.67
B103: 82 | C103: 2029-06-01 | D103: 5 | E103: 2029-06-01 | F103: 31 | G103: 2496 | H103: 153872.0644 | I103: -110.027059 | J103: 1568.577491 | K103: 50.88063397 | L103: 60.96496 | M103: 0 | N103: 1570.396026 | O103: 153982.0915 | P103: 0.4304221412 | Q103: 0.4304221412 | S103: 1570.396026 | T103: 2496 | U103: 2.402997324 | V103: 653.52
B104: 83 | C104: 2029-07-01 | D104: 7 | E104: 2029-07-02 | F104: 31 | G104: 2527 | H104: 153982.0915 | I104: 1459.210965 | J104: 1569.699111 | K104: 50.91701645 | L104: 60.96496 | M104: 0 | N104: 3140.792052 | O104: 152522.8805 | P104: 0.851878421 | Q104: 0.4259392105 | S104: 3140.792052 | T104: 2527 | U104: 2.42930584 | V104: 1292.88
B105: 84 | C105: 2029-08-01 | D105: 3 | E105: 2029-08-01 | F105: 30 | G105: 2557 | H105: 152522.8805 | I105: -43.79797384 | J105: 1504.421718 | K105: 48.80732177 | L105: 60.96496 | M105: 0 | N105: 1570.396026 | O105: 152566.6785 | P105: 0.4216453511 | Q105: 0.4216453511 | S105: 1570.396026 | T105: 2557 | U105: 2.455039906 | V105: 639.66
B106: 85 | C106: 2029-09-01 | D106: 6 | E106: 2029-09-01 | F106: 31 | G106: 2588 | H106: 152566.6785 | I106: -96.28825686 | J106: 1555.270339 | K106: 50.44898405 | L106: 60.96496 | M106: 0 | N106: 1570.396026 | O106: 152662.9668 | P106: 0.4172538324 | Q106: 0.4172538324 | S106: 1570.396026 | T106: 2588 | U106: 2.481918195 | V106: 632.73
B107: 86 | C107: 2029-10-01 | D107: 1 | E107: 2029-10-01 | F107: 30 | G107: 2618 | H107: 152662.9668 | I107: -45.22455326 | J107: 1505.80347 | K107: 48.85214936 | L107: 60.96496 | M107: 0 | N107: 1570.396026 | O107: 152708.1913 | P107: 0.4130475296 | Q107: 0.4130475296 | S107: 1570.396026 | T107: 2618 | U107: 2.508209593 | V107: 626.1
B108: 87 | C108: 2029-11-01 | D108: 4 | E108: 2029-11-01 | F108: 31 | G108: 2649 | H108: 152708.1913 | I108: -97.77763748 | J108: 1556.712926 | K108: 50.49577787 | L108: 60.96496 | M108: 0 | N108: 1570.396026 | O108: 152805.9689 | P108: 0.4087455588 | Q108: 0.4087455588 | S108: 1570.396026 | T108: 2649 | U108: 2.535669995 | V108: 619.32
B109: 88 | C109: 2029-12-01 | D109: 6 | E109: 2029-12-01 | F109: 30 | G109: 2679 | H109: 152805.9689 | I109: 1523.715199 | J109: 1507.213984 | K109: 48.89791006 | L109: 60.96496 | M109: 0 | N109: 3140.792052 | O109: 151282.2537 | P109: 0.8092500545 | Q109: 0.4046250273 | S109: 3140.792052 | T109: 2679 | U109: 2.562530795 | V109: 1225.66
B110: 89 | C110: 2030-01-01 | D110: 2 | E110: 2030-01-01 | F110: 31 | G110: 2710 | H110: 151282.2537 | I110: -82.77006494 | J110: 1542.176866 | K110: 50.02426534 | L110: 60.96496 | M110: 0 | N110: 1570.396026 | O110: 151365.0238 | P110: 0.4004107785 | Q110: 0.4004107785 | S110: 1570.396026 | T110: 2710 | U110: 2.590585916 | V110: 606.19
B111: 90 | C111: 2030-02-01 | D111: 5 | E111: 2030-02-01 | F111: 31 | G111: 2741 | H111: 151365.0238 | I111: -83.64119548 | J111: 1543.020627 | K111: 50.05163479 | L111: 60.96496 | M111: 0 | N111: 1570.396026 | O111: 151448.665 | P111: 0.396240422 | Q111: 0.396240422 | S111: 1570.396026 | T111: 2741 | U111: 2.618948191 | V111: 599.63
B112: 91 | C112: 2030-03-01 | D112: 5 | E112: 2030-03-01 | F112: 28 | G112: 2769 | H112: 151448.665 | I112: 70.41798717 | J112: 1393.780893 | K112: 45.23218552 | L112: 60.96496 | M112: 0 | N112: 1570.396026 | O112: 151378.247 | P112: 0.3925109943 | Q112: 0.3925109943 | S112: 1570.396026 | T112: 2769 | U112: 2.644832531 | V112: 593.76
B113: 92 | C113: 2030-04-01 | D113: 1 | E113: 2030-04-01 | F113: 31 | G113: 2800 | H113: 151378.247 | I113: -83.78036585 | J113: 1543.155425 | K113: 50.05600728 | L113: 60.96496 | M113: 0 | N113: 1570.396026 | O113: 151462.0274 | P113: 0.3884229156 | Q113: 0.3884229156 | S113: 1570.396026 | T113: 2800 | U113: 2.673788709 | V113: 587.33
B114: 93 | C114: 2030-05-01 | D114: 3 | E114: 2030-05-01 | F114: 30 | G114: 2830 | H114: 151462.0274 | I114: -32.99469045 | J114: 1493.957908 | K114: 48.46784876 | L114: 60.96496 | M114: 0 | N114: 1570.396026 | O114: 151495.0221 | P114: 0.384507255 | Q114: 0.384507255 | S114: 1570.396026 | T114: 2830 | U114: 2.702112625 | V114: 581.17
B115: 94 | C115: 2030-06-01 | D115: 6 | E115: 2030-06-01 | F115: 31 | G115: 2861 | H115: 151495.0221 | I115: -85.00938889 | J115: 1544.345834 | K115: 50.09462111 | L115: 60.96496 | M115: 0 | N115: 1570.396026 | O115: 151580.0315 | P115: 0.3805025368 | Q115: 0.3805025368 | S115: 1570.396026 | T115: 2861 | U115: 2.731695918 | V115: 574.88
B116: 95 | C116: 2030-07-01 | D116: 1 | E116: 2030-07-01 | F116: 30 | G116: 2891 | H116: 151580.0315 | I116: 1536.199632 | J116: 1495.121851 | K116: 48.50561007 | L116: 60.96496 | M116: 0 | N116: 3140.792052 | O116: 150043.8318 | P116: 0.7533334418 | Q116: 0.3766667209 | S116: 3140.792052 | T116: 2891 | U116: 2.760633255 | V116: 1137.71
B117: 96 | C117: 2030-08-01 | D117: 4 | E117: 2030-08-01 | F117: 31 | G117: 2922 | H117: 150043.8318 | I117: -69.73603932 | J117: 1529.552347 | K117: 49.61475831 | L117: 60.96496 | M117: 0 | N117: 1570.396026 | O117: 150113.5679 | P117: 0.3727436634 | Q117: 0.3727436634 | S117: 1570.396026 | T117: 2922 | U117: 2.790857244 | V117: 562.69
B118: 97 | C118: 2030-09-01 | D118: 7 | E118: 2030-09-02 | F118: 32 | G118: 2954 | H118: 150113.5679 | I118: -121.6936863 | J118: 1579.885441 | K118: 51.23931099 | L118: 60.96496 | M118: 0 | N118: 1570.396026 | O118: 150235.2616 | P118: 0.3687369085 | Q118: 0.3687369085 | S118: 1570.396026 | T118: 2954 | U118: 2.822403323 | V118: 556.4
B119: 98 | C119: 2030-10-01 | D119: 2 | E119: 2030-10-01 | F119: 29 | G119: 2983 | H119: 150235.2616 | I119: 30.73087965 | J119: 1432.22766 | K119: 46.47252641 | L119: 60.96496 | M119: 0 | N119: 1570.396026 | O119: 150204.5307 | P119: 0.3651430021 | Q119: 0.3651430021 | S119: 1570.396026 | T119: 2983 | U119: 2.851299848 | V119: 550.76
B120: 99 | C120: 2030-11-01 | D120: 5 | E120: 2030-11-01 | F120: 31 | G120: 3014 | H120: 150204.5307 | I120: -71.42734731 | J120: 1531.190517 | K120: 49.66789634 | L120: 60.96496 | M120: 0 | N120: 1570.396026 | O120: 150275.958 | P120: 0.3613399664 | Q120: 0.3613399664 | S120: 1570.396026 | T120: 3014 | U120: 2.882516474 | V120: 544.8
B121: 100 | C121: 2030-12-01 | D121: 7 | E121: 2030-12-02 | F121: 31 | G121: 3045 | H121: 150275.958 | I121: 1498.216927 | J121: 1531.91865 | K121: 49.69151511 | L121: 60.96496 | M121: 0 | N121: 3140.792052 | O121: 148777.7411 | P121: 0.71515308 | Q121: 0.35757654 | S121: 3140.792052 | T121: 3045 | U121: 2.914074865 | V121: 1077.8
B122: 101 | C122: 2031-01-01 | D122: 3 | E122: 2031-01-01 | F122: 30 | G122: 3075 | H122: 148777.7411 | I122: -5.659044833 | J122: 1467.481234 | K122: 47.60887715 | L122: 60.96496 | M122: 0 | N122: 1570.396026 | O122: 148783.4001 | P122: 0.3539718392 | Q122: 0.3539718392 | S122: 1570.396026 | T122: 3075 | U122: 2.944944175 | V122: 533.25
B123: 102 | C123: 2031-02-01 | D123: 6 | E123: 2031-02-01 | F123: 31 | G123: 3106 | H123: 148783.4001 | I123: -56.4703673 | J123: 1516.70346 | K123: 49.19797334 | L123: 60.96496 | M123: 0 | N123: 1570.396026 | O123: 148839.8705 | P123: 0.3502851534 | Q123: 0.3502851534 | S123: 1570.396026 | T123: 3106 | U123: 2.977186038 | V123: 527.48
B124: 103 | C124: 2031-03-01 | D124: 6 | E124: 2031-03-01 | F124: 28 | G124: 3134 | H124: 148839.8705 | I124: 95.20585439 | J124: 1369.772178 | K124: 44.45303387 | L124: 60.96496 | M124: 0 | N124: 1570.396026 | O124: 148744.6647 | P124: 0.3469882582 | Q124: 0.3469882582 | S124: 1570.396026 | T124: 3134 | U124: 3.006611017 | V124: 522.31
B125: 104 | C125: 2031-04-01 | D125: 2 | E125: 2031-04-01 | F125: 31 | G125: 3165 | H125: 148744.6647 | I125: -56.06268771 | J125: 1516.308589 | K125: 49.18516474 | L125: 60.96496 | M125: 0 | N125: 1570.396026 | O125: 148800.7273 | P125: 0.3433743076 | Q125: 0.3433743076 | S125: 1570.396026 | T125: 3165 | U125: 3.039528021 | V125: 516.66
B126: 105 | C126: 2031-05-01 | D126: 4 | E126: 2031-05-01 | F126: 30 | G126: 3195 | H126: 148800.7273 | I126: -5.893127115 | J126: 1467.707961 | K126: 47.61623275 | L126: 60.96496 | M126: 0 | N126: 1570.396026 | O126: 148806.6205 | P126: 0.3399127785 | Q126: 0.3399127785 | S126: 1570.396026 | T126: 3195 | U126: 3.071726279 | V126: 511.24
B127: 106 | C127: 2031-06-01 | D127: 7 | E127: 2031-06-02 | F127: 32 | G127: 3227 | H127: 148806.6205 | I127: -107.4924767 | J127: 1566.130341 | K127: 50.79320152 | L127: 60.96496 | M127: 0 | N127: 1570.396026 | O127: 148914.1129 | P127: 0.3362589345 | Q127: 0.3362589345 | S127: 1570.396026 | T127: 3227 | U127: 3.106447123 | V127: 505.53
B128: 107 | C128: 2031-07-01 | D128: 2 | E128: 2031-07-01 | F128: 29 | G128: 3256 | H128: 148914.1129 | I128: 1614.130396 | J128: 1419.632843 | K128: 46.06385329 | L128: 60.96496 | M128: 0 | N128: 3140.792052 | O128: 147299.9825 | P128: 0.6659631515 | Q128: 0.3329815757 | S128: 3140.792052 | T128: 3256 | U128: 3.138251765 | V128: 1000.81
B129: 108 | C129: 2031-08-01 | D129: 5 | E129: 2031-08-01 | F129: 31 | G129: 3287 | H129: 147299.9825 | I129: -40.85783438 | J129: 1501.581447 | K129: 48.70745397 | L129: 60.96496 | M129: 0 | N129: 1570.396026 | O129: 147340.8404 | P129: 0.3295135075 | Q129: 0.3295135075 | S129: 1570.396026 | T129: 3287 | U129: 3.17261 | V129: 494.99
B130: 109 | C130: 2031-09-01 | D130: 1 | E130: 2031-09-01 | F130: 31 | G130: 3318 | H130: 147340.8404 | I130: -41.28785104 | J130: 1501.997953 | K130: 48.72096437 | L130: 60.96496 | M130: 0 | N130: 1570.396026 | O130: 147382.1282 | P130: 0.32608156 | Q130: 0.32608156 | S130: 1570.396026 | T130: 3318 | U130: 3.207344396 | V130: 489.63
B131: 110 | C131: 2031-10-01 | D131: 3 | E131: 2031-10-01 | F131: 30 | G131: 3348 | H131: 147382.1282 | I131: 8.553291158 | J131: 1453.715494 | K131: 47.16228104 | L131: 60.96496 | M131: 0 | N131: 1570.396026 | O131: 147373.5749 | P131: 0.3227943576 | Q131: 0.3227943576 | S131: 1570.396026 | T131: 3348 | U131: 3.241320362 | V131: 484.49
B132: 111 | C132: 2031-11-01 | D132: 6 | E132: 2031-11-01 | F132: 31 | G132: 3379 | H132: 147373.5749 | I132: -41.63237264 | J132: 1502.33165 | K132: 48.73178866 | L132: 60.96496 | M132: 0 | N132: 1570.396026 | O132: 147415.2073 | P132: 0.3194323913 | Q132: 0.3194323913 | S132: 1570.396026 | T132: 3379 | U132: 3.276807013 | V132: 479.25
B133: 112 | C133: 2031-12-01 | D133: 1 | E133: 2031-12-01 | F133: 30 | G133: 3409 | H133: 147415.2073 | I133: 1578.612454 | J133: 1454.041772 | K133: 47.17286634 | L133: 60.96496 | M133: 0 | N133: 3140.792052 | O133: 145836.5949 | P133: 0.6324244374 | Q133: 0.3162122187 | S133: 3140.792052 | T133: 3409 | U133: 3.311518808 | V133: 948.44
B134: 113 | C134: 2032-01-01 | D134: 4 | E134: 2032-01-01 | F134: 31 | G134: 3440 | H134: 145836.5949 | I134: -25.4561103 | J134: 1486.663619 | K134: 48.22355787 | L134: 60.96496 | M134: 0 | N134: 1570.396026 | O134: 145862.051 | P134: 0.3129188066 | Q134: 0.3129188066 | S134: 1570.396026 | T134: 3440 | U134: 3.347774007 | V134: 469.09
B135: 114 | C135: 2032-02-01 | D135: 7 | E135: 2032-02-02 | F135: 32 | G135: 3472 | H135: 145862.051 | I135: -75.49696647 | J135: 1535.139922 | K135: 49.78811108 | L135: 60.96496 | M135: 0 | N135: 1570.396026 | O135: 145937.5479 | P135: 0.3095551306 | Q135: 0.3095551306 | S135: 1570.396026 | T135: 3472 | U135: 3.385615119 | V135: 463.84
B136: 115 | C136: 2032-03-01 | D136: 1 | E136: 2032-03-01 | F136: 28 | G136: 3500 | H136: 145937.5479 | I136: 122.7827243 | J136: 1343.062126 | K136: 43.58621611 | L136: 60.96496 | M136: 0 | N136: 1570.396026 | O136: 145814.7652 | P136: 0.3066415876 | Q136: 0.3066415876 | S136: 1570.396026 | T136: 3500 | U136: 3.419076802 | V136: 459.3
B137: 116 | C137: 2032-04-01 | D137: 4 | E137: 2032-04-01 | F137: 31 | G137: 3531 | H137: 145814.7652 | I137: -25.22635969 | J137: 1486.441086 | K137: 48.21633949 | L137: 60.96496 | M137: 0 | N137: 1570.396026 | O137: 145839.9916 | P137: 0.3034478556 | Q137: 0.3034478556 | S137: 1570.396026 | T137: 3531 | U137: 3.456509567 | V137: 454.33
B138: 117 | C138: 2032-05-01 | D138: 6 | E138: 2032-05-01 | F138: 30 | G138: 3561 | H138: 145839.9916 | I138: 24.25776406 | J138: 1438.504505 | K138: 46.6687973 | L138: 60.96496 | M138: 0 | N138: 1570.396026 | O138: 145815.7338 | P138: 0.3003888218 | Q138: 0.3003888218 | S138: 1570.396026 | T138: 3561 | U138: 3.493124984 | V138: 449.57
B139: 118 | C139: 2032-06-01 | D139: 2 | E139: 2032-06-01 | F139: 31 | G139: 3592 | H139: 145815.7338 | I139: -25.23655388 | J139: 1486.45096 | K139: 48.21665977 | L139: 60.96496 | M139: 0 | N139: 1570.396026 | O139: 145840.9704 | P139: 0.2972602135 | Q139: 0.2972602135 | S139: 1570.396026 | T139: 3592 | U139: 3.531368445 | V139: 444.7
B140: 119 | C140: 2032-07-01 | D140: 4 | E140: 2032-07-01 | F140: 30 | G140: 3622 | H140: 145840.9704 | I140: 1594.643823 | J140: 1438.514159 | K140: 46.66911052 | L140: 60.96496 | M140: 0 | N140: 3140.792052 | O140: 144246.3265 | P140: 0.5885271138 | Q140: 0.2942635569 | S140: 3140.792052 | T140: 3622 | U140: 3.568776854 | V140: 880.08
B141: 120 | C141: 2032-08-01 | D141: 7 | E141: 2032-08-02 | F141: 32 | G141: 3654 | H141: 144246.3265 | I141: -57.94060465 | J141: 1518.135066 | K141: 49.23660459 | L141: 60.96496 | M141: 0 | N141: 1570.396026 | O141: 144304.2671 | P141: 0.2911004128 | Q141: 0.2911004128 | S141: 1570.396026 | T141: 3654 | U141: 3.609116043 | V141: 435.12
B142: 121 | C142: 2032-09-01 | D142: 3 | E142: 2032-09-01 | F142: 30 | G142: 3684 | H142: 144304.2671 | I142: 39.89693748 | J142: 1423.356763 | K142: 46.17736549 | L142: 60.96496 | M142: 0 | N142: 1570.396026 | O142: 144264.3702 | P142: 0.2881658526 | Q142: 0.2881658526 | S142: 1570.396026 | T142: 3684 | U142: 3.647348046 | V142: 430.56
B143: 122 | C143: 2032-10-01 | D143: 5 | E143: 2032-10-01 | F143: 30 | G143: 3714 | H143: 144264.3702 | I143: 40.30323116 | J143: 1422.963237 | K143: 46.16459847 | L143: 60.96496 | M143: 0 | N143: 1570.396026 | O143: 144224.067 | P143: 0.2852608755 | Q143: 0.2852608755 | S143: 1570.396026 | T143: 3714 | U143: 3.685985048 | V143: 426.05
B144: 123 | C144: 2032-11-01 | D144: 1 | E144: 2032-11-01 | F144: 31 | G144: 3745 | H144: 144224.067 | I144: -8.484729597 | J144: 1470.22545 | K144: 47.6903458 | L144: 60.96496 | M144: 0 | N144: 1570.396026 | O144: 144232.5517 | P144: 0.2822898277 | Q144: 0.2822898277 | S144: 1570.396026 | T144: 3745 | U144: 3.726339981 | V144: 421.43
B145: 124 | C145: 2032-12-01 | D145: 3 | E145: 2032-12-01 | F145: 30 | G145: 3775 | H145: 144232.5517 | I145: 1611.023284 | J145: 1422.649392 | K145: 46.15441655 | L145: 60.96496 | M145: 0 | N145: 3140.792052 | O145: 142621.5284 | P145: 0.5588881727 | Q145: 0.2794440863 | S145: 3140.792052 | T145: 3775 | U145: 3.765813759 | V145: 834.03
B146: 125 | C146: 2033-01-01 | D146: 6 | E146: 2033-01-01 | F146: 31 | G146: 3806 | H146: 142621.5284 | I146: 8.381516344 | J146: 1453.889113 | K146: 47.16043689 | L146: 60.96496 | M146: 0 | N146: 1570.396026 | O146: 142613.1469 | P146: 0.2765336216 | Q146: 0.2765336216 | S146: 1570.396026 | T146: 3806 | U146: 3.807042674 | V146: 412.5
B147: 126 | C147: 2033-02-01 | D147: 2 | E147: 2033-02-01 | F147: 31 | G147: 3837 | H147: 142613.1469 | I147: 8.469729334 | J147: 1453.803671 | K147: 47.15766539 | L147: 60.96496 | M147: 0 | N147: 1570.396026 | O147: 142604.6772 | P147: 0.2736534699 | Q147: 0.2736534699 | S147: 1570.396026 | T147: 3837 | U147: 3.848722971 | V147: 408.03
B148: 127 | C148: 2033-03-01 | D148: 2 | E148: 2033-03-01 | F148: 28 | G148: 3865 | H148: 142604.6772 | I148: 154.450515 | J148: 1312.389742 | K148: 42.59080933 | L148: 60.96496 | M148: 0 | N148: 1570.396026 | O148: 142450.2267 | P148: 0.2710778345 | Q148: 0.2710778345 | S148: 1570.396026 | T148: 3865 | U148: 3.886761773 | V148: 404.04
B149: 128 | C149: 2033-04-01 | D149: 5 | E149: 2033-04-01 | F149: 31 | G149: 3896 | H149: 142450.2267 | I149: 10.18441688 | J149: 1452.142856 | K149: 47.10379281 | L149: 60.96496 | M149: 0 | N149: 1570.396026 | O149: 142440.0422 | P149: 0.2682545059 | Q149: 0.2682545059 | S149: 1570.396026 | T149: 3896 | U149: 3.929314852 | V149: 399.66
B150: 129 | C150: 2033-05-01 | D150: =IF(B150<=$J$8,WEEKDAY(C150,2),"") -> 7 | E150: 2033-05-02 | F150: 31 | G150: 3927 | H150: 142440.0422 | I150: =IF(B150>J$8,"",N150-M150-L150-J150-K150) -> 10.29160487 | J150: =IF(B150>J$8,"",((1+C$13)^(F150/360)-1)*H150) -> 1452.039036 | K150: =IF(B150>J$8,"",((1+O$13)^(F150/30)-1)*H150) -> 47.10042514 | L150: =IF(B150>J$8,"",C$4*K$13) -> 60.96496 | M150: =IF(B150>J$8,"",J$14) -> 0 | N150: =IF(B150>J$8,"",IF(B150=J$8,H150+J150+L150+M150,IF(AND(K$10=2,MONTH(E150)=7),2*C$16,IF(AND(K$11=2,MONTH(E150)=12),2*C$16,C$16)))) -> 1570.396026 | O150: 142429.7506 | P150: =IFERROR(IF(AND(MONTH(E150)=7,K$10=2),2/(1+C$14)^(G150/360),IF(AND(MONTH(E150)=12,K$11=2),2/(1+C$14)^(G150/360),1/(1+C$14)^(G150/360))),"") -> 0.2654605828 | Q150: =IFERROR(1/(1+C$14)^(G150/360),"") -> 0.2654605828 | S150: 1570.396026 | T150: =G150 -> 3927 | U150: =IFERROR((1+C$18)^(T150/360),"") -> 3.97233381 | V150: =IFERROR(ROUND(S150/U150,2),"") -> 395.33
B151: 130 | C151: =IF(B151>$J$8,"",EDATE(C150,1)) -> 2033-06-01 | D151: 3 | E151: =IF(D151=7,C151+1,C151) -> 2033-06-01 | F151: =IF(B151>J$8,"",E151-E150) -> 30 | G151: =IFERROR(F151+G150,"") -> 3957 | H151: =IF(B151>J$8,"",O150) -> 142429.7506 | I151: 58.98622731 | J151: 1404.867319 | K151: 45.57752021 | L151: 60.96496 | M151: 0 | N151: 1570.396026 | O151: 142370.7644 | P151: 0.2627844957 | Q151: 0.2627844957 | S151: =IFERROR(I151+J151+K151+L151+M151,"") -> 1570.396026 | T151: 3957 | U151: 4.014413444 | V151: 391.19
B152: 131 | C152: 2033-07-01 | D152: 5 | E152: 2033-07-01 | F152: 30 | G152: 3987 | H152: 142370.7644 | I152: 1629.982944 | J152: 1404.285503 | K152: 45.55864461 | L152: 60.96496 | M152: 0 | N152: 3140.792052 | O152: =IF(B152=J$8,0,IF(B152>J$8,"",H152-I152)) -> 140740.7815 | P152: 0.5202707721 | Q152: 0.2601353861 | S152: 3140.792052 | T152: 3987 | U152: 4.056938835 | V152: 774.18
B153: 132 | C153: 2033-08-01 | D153: 1 | E153: 2033-08-01 | F153: 31 | G153: 4018 | H153: 140740.7815 | I153: 28.1758237 | J153: 1434.716709 | K153: 46.53853325 | L153: 60.96496 | M153: 0 | N153: 1570.396026 | O153: 140712.6056 | P153: 0.2574260252 | Q153: 0.2574260252 | S153: 1570.396026 | T153: 4018 | U153: 4.101355047 | V153: 382.9
B154: 133 | C154: 2033-09-01 | D154: 4 | E154: 2033-09-01 | F154: 31 | G154: 4049 | H154: 140712.6056 | I154: 28.47236594 | J154: 1434.429484 | K154: 46.5292164 | L154: 60.96496 | M154: 0 | N154: 1570.396026 | O154: 140684.1333 | P154: 0.2547448828 | Q154: 0.2547448828 | S154: 1570.396026 | T154: 4049 | U154: 4.146257538 | V154: 378.75
B155: 134 | C155: 2033-10-01 | D155: 6 | E155: 2033-10-01 | F155: 30 | G155: 4079 | H155: 140684.1333 | I155: 76.76286232 | J155: 1387.649281 | K155: 45.01892265 | L155: 60.96496 | M155: 0 | N155: 1570.396026 | O155: 140607.3704 | P155: 0.2521768198 | Q155: 0.2521768198 | S155: 1570.396026 | T155: 4079 | U155: 4.190179576 | V155: 374.78
B156: 135 | C156: 2033-11-01 | D156: 2 | E156: 2033-11-01 | F156: 31 | G156: 4110 | H156: 140607.3704 | I156: 29.5799357 | J156: 1433.356712 | K156: 46.49441843 | L156: 60.96496 | M156: 0 | N156: 1570.396026 | O156: 140577.7905 | P156: 0.249550349 | Q156: 0.249550349 | S156: 1570.396026 | T156: 4110 | U156: 4.236054536 | V156: 370.72
B157: 136 | C157: 2033-12-01 | D157: 4 | E157: 2033-12-01 | F157: 30 | G157: 4140 | H157: 140577.7905 | I157: 1648.241839 | J157: 1386.60036 | K157: 44.98489295 | L157: 60.96496 | M157: 0 | N157: 3140.792052 | O157: 138929.5486 | P157: 0.4940693034 | Q157: 0.2470346517 | S157: 3140.792052 | T157: 4140 | U157: 4.28092781 | V157: 733.67
B158: 137 | C158: 2034-01-01 | D158: 7 | E158: 2034-01-02 | F158: 32 | G158: 4172 | H158: 138929.5486 | I158: -0.1688245378 | J158: 1462.178099 | K158: 47.42179171 | L158: 60.96496 | M158: 0 | N158: 1570.396026 | O158: 138929.7175 | P158: 0.244379188 | Q158: 0.244379188 | S158: 1570.396026 | T158: 4172 | U158: 4.329316701 | V158: 362.74
B159: 138 | C159: 2034-02-01 | D159: 3 | E159: 2034-02-01 | F159: 30 | G159: 4202 | H159: 138929.7175 | I159: 94.62909707 | J159: 1370.344459 | K159: 44.45750959 | L159: 60.96496 | M159: 0 | N159: 1570.396026 | O159: 138835.0884 | P159: 0.2419156207 | Q159: 0.2419156207 | S159: 1570.396026 | T159: 4202 | U159: 4.375177917 | V159: 358.93
B160: 139 | C160: 2034-03-01 | D160: 3 | E160: 2034-03-01 | F160: 28 | G160: 4230 | H160: 138835.0884 | I160: 190.2678501 | J160: 1277.698245 | K160: 41.46497081 | L160: 60.96496 | M160: 0 | N160: 1570.396026 | O160: 138644.8205 | P160: 0.2396387031 | Q160: 0.2396387031 | S160: 1570.396026 | T160: 4230 | U160: 4.41841993 | V160: 355.42
B161: 140 | C161: 2034-04-01 | D161: 6 | E161: 2034-04-01 | F161: 31 | G161: 4261 | H161: 138644.8205 | I161: 50.23519492 | J161: 1413.350406 | K161: 45.84546513 | L161: 60.96496 | M161: 0 | N161: 1570.396026 | O161: 138594.5853 | P161: 0.2371428192 | Q161: 0.2371428192 | S161: 1570.396026 | T161: 4261 | U161: 4.466793713 | V161: 351.57
B162: 141 | C162: 2034-05-01 | D162: 1 | E162: 2034-05-01 | F162: 30 | G162: 4291 | H162: 138594.5853 | I162: 98.04194224 | J162: 1367.038857 | K162: 44.3502673 | L162: 60.96496 | M162: 0 | N162: 1570.396026 | O162: 138496.5434 | P162: 0.2347522012 | Q162: 0.2347522012 | S162: 1570.396026 | T162: 4291 | U162: 4.514111248 | V162: 347.89
B163: 142 | C163: 2034-06-01 | D163: 4 | E163: 2034-06-01 | F163: 31 | G163: 4322 | H163: 138496.5434 | I163: 51.79576808 | J163: 1411.838863 | K163: 45.79643457 | L163: 60.96496 | M163: 0 | N163: 1570.396026 | O163: 138444.7476 | P163: 0.2323072111 | Q163: 0.2323072111 | S163: 1570.396026 | T163: 4322 | U163: 4.563532679 | V163: 344.12
B164: 143 | C164: 2034-07-01 | D164: 6 | E164: 2034-07-01 | F164: 30 | G164: 4352 | H164: 138444.7476 | I164: 1669.963853 | J164: 1365.56092 | K164: 44.30231924 | L164: 60.96496 | M164: 0 | N164: 3140.792052 | O164: 136774.7838 | P164: 0.4599306812 | Q164: 0.2299653406 | S164: 3140.792052 | T164: 4352 | U164: 4.611874987 | V164: 681.02
B165: 144 | C165: 2034-08-01 | D165: 2 | E165: 2034-08-01 | F165: 31 | G165: 4383 | H165: 136774.7838 | I165: 69.91678061 | J165: 1394.287183 | K165: 45.22710302 | L165: 60.96496 | M165: 0 | N165: 1570.396026 | O165: 136704.867 | P165: 0.2275702066 | Q165: 0.2275702066 | S165: 1570.396026 | T165: 4383 | U165: 4.662366756 | V165: 336.82
B166: 145 | C166: 2034-09-01 | D166: 5 | E166: 2034-09-01 | F166: 31 | G166: 4414 | H166: 136704.867 | I166: 70.65263412 | J166: 1393.574448 | K166: 45.20398374 | L166: 60.96496 | M166: 0 | N166: 1570.396026 | O166: 136634.2143 | P166: 0.2252000184 | Q166: 0.2252000184 | S166: 1570.396026 | T166: 4414 | U166: 4.71341132 | V166: 333.18
B167: 146 | C167: 2034-10-01 | D167: 7 | E167: 2034-10-02 | F167: 31 | G167: 4445 | H167: 136634.2143 | I167: 71.39623227 | J167: 1392.854213 | K167: 45.18062115 | L167: 60.96496 | M167: 0 | N167: 1570.396026 | O167: 136562.8181 | P167: 0.2228545162 | Q167: 0.2228545162 | S167: 1570.396026 | T167: 4445 | U167: 4.76501473 | V167: 329.57
B168: 147 | C168: 2034-11-01 | D168: 3 | E168: 2034-11-01 | F168: 30 | G168: 4475 | H168: 136562.8181 | I168: 118.7326073 | J168: 1346.998357 | K168: 43.7001018 | L168: 60.96496 | M168: 0 | N168: 1570.396026 | O168: 136444.0855 | P168: 0.2206079375 | Q168: 0.2206079375 | S168: 1570.396026 | T168: 4475 | U168: 4.815491373 | V168: 326.11
B169: 148 | C169: 2034-12-01 | D169: 5 | E169: 2034-12-01 | F169: 30 | G169: 4505 | H169: 136444.0855 | I169: 1690.337756 | J169: 1345.827228 | K169: 43.66210736 | L169: 60.96496 | M169: 0 | N169: 3140.792052 | O169: 134753.7478 | P169: 0.4367680128 | Q169: 0.2183840064 | S169: 3140.792052 | T169: 4505 | U169: 4.866502724 | V169: 645.39
B170: 149 | C170: 2035-01-01 | D170: 1 | E170: 2035-01-01 | F170: 31 | G170: 4536 | H170: 134753.7478 | I170: 91.18758894 | J170: 1373.684667 | K170: 44.55881021 | L170: 60.96496 | M170: 0 | N170: 1570.396026 | O170: 134662.5602 | P170: 0.2161094943 | Q170: 0.2161094943 | S170: 1570.396026 | T170: 4536 | U170: 4.91978221 | V170: 319.2
B171: 150 | C171: 2035-02-01 | D171: 4 | E171: 2035-02-01 | F171: 31 | G171: 4567 | H171: 134662.5602 | I171: 92.14731143 | J171: 1372.755097 | K171: 44.52865735 | L171: 60.96496 | M171: 0 | N171: 1570.396026 | O171: 134570.4129 | P171: 0.2138586717 | Q171: 0.2138586717 | S171: 1570.396026 | T171: 4567 | U171: 4.973645012 | V171: 315.74
B172: 151 | C172: 2035-03-01 | D172: 4 | E172: 2035-03-01 | F172: 28 | G172: 4595 | H172: 134570.4129 | I172: 230.7893288 | J172: 1238.450469 | K172: 40.19126798 | L172: 60.96496 | M172: 0 | N172: 1570.396026 | O172: 134339.6235 | P172: 0.2118458269 | Q172: 0.2118458269 | S172: 1570.396026 | T172: 4595 | U172: 5.022801967 | V172: 312.65
B173: 152 | C173: 2035-04-01 | D173: 7 | E173: 2035-04-02 | F173: 32 | G173: 4627 | H173: 134339.6235 | I173: 49.7050182 | J173: 1413.870967 | K173: 45.85508056 | L173: 60.96496 | M173: 0 | N173: 1570.396026 | O173: 134289.9185 | P173: 0.2095686204 | Q173: 0.2095686204 | S173: 1570.396026 | T173: 4627 | U173: 5.079576532 | V173: 309.16
B174: 153 | C174: 2035-05-01 | D174: 2 | E174: 2035-05-01 | F174: 29 | G174: 4656 | H174: 134289.9185 | I174: 187.6739401 | J174: 1280.216999 | K174: 41.5401266 | L174: 60.96496 | M174: 0 | N174: 1570.396026 | O174: 134102.2446 | P174: 0.207526053 | Q174: 0.207526053 | S174: 1570.396026 | T174: 4656 | U174: 5.131582605 | V174: 306.03
B175: 154 | C175: 2035-06-01 | D175: 5 | E175: 2035-06-01 | F175: 31 | G175: 4687 | H175: 134102.2446 | I175: 98.04446796 | J175: 1367.04322 | K175: 44.34337867 | L175: 60.96496 | M175: 0 | N175: 1570.396026 | O175: 134004.2001 | P175: 0.2053646285 | Q175: 0.2053646285 | S175: 1570.396026 | T175: 4687 | U175: 5.187764241 | V175: 302.71
B176: 155 | C176: 2035-07-01 | D176: 7 | E176: 2035-07-02 | F176: 31 | G176: 4718 | H176: 134004.2001 | I176: 1669.472383 | J176: 1366.043751 | K176: 44.31095846 | L176: 60.96496 | M176: 0 | N176: 3140.792052 | O176: 132334.7277 | P176: 0.4064514316 | Q176: 0.2032257158 | S176: 3140.792052 | T176: 4718 | U176: 5.244560966 | V176: 598.87
B177: 156 | C177: 2035-08-01 | D177: 3 | E177: 2035-08-01 | F177: 30 | G177: 4748 | H177: 132334.7277 | I177: 161.7897065 | J177: 1305.294247 | K177: 42.34711287 | L177: 60.96496 | M177: 0 | N177: 1570.396026 | O177: 132172.938 | P177: 0.2011770135 | Q177: 0.2011770135 | S177: 1570.396026 | T177: 4748 | U177: 5.300117527 | V177: 296.29
B178: 157 | C178: 2035-09-01 | D178: 6 | E178: 2035-09-01 | F178: 31 | G178: 4779 | H178: 132172.938 | I178: 118.3498508 | J178: 1347.375797 | K178: 43.7054179 | L178: 60.96496 | M178: 0 | N178: 1570.396026 | O178: 132054.5882 | P178: 0.1990817156 | Q178: 0.1990817156 | S178: 1570.396026 | T178: 4779 | U178: 5.358144319 | V178: 293.09
B179: 158 | C179: 2035-10-01 | D179: 1 | E179: 2035-10-01 | F179: 30 | G179: 4809 | H179: 132054.5882 | I179: 164.6425302 | J179: 1302.531068 | K179: 42.25746821 | L179: 60.96496 | M179: 0 | N179: 1570.396026 | O179: 131889.9456 | P179: 0.1970747886 | Q179: 0.1970747886 | S179: 1570.396026 | T179: 4809 | U179: 5.414904088 | V179: 290.01
B180: 159 | C180: 2035-11-01 | D180: 4 | E180: 2035-11-01 | F180: 31 | G180: 4840 | H180: 131889.9456 | I180: 121.3282622 | J180: 1344.490963 | K180: 43.61184126 | L180: 60.96496 | M180: 0 | N180: 1570.396026 | O180: 131768.6174 | P180: 0.1950222161 | Q180: 0.1950222161 | S180: 1570.396026 | T180: 4840 | U180: 5.474187588 | V180: 286.87
B181: 160 | C181: 2035-12-01 | D181: 6 | E181: 2035-12-01 | F181: 30 | G181: 4870 | H181: 131768.6174 | I181: 1737.950763 | J181: 1299.710372 | K181: 42.16595756 | L181: 60.96496 | M181: 0 | N181: 3140.792052 | O181: 130030.6666 | P181: 0.3861124253 | Q181: 0.1930562126 | S181: 3140.792052 | T181: 4870 | U181: 5.532176624 | V181: 567.73
B182: 161 | C182: 2036-01-01 | D182: 2 | E182: 2036-01-01 | F182: 31 | G182: 4901 | H182: 130030.6666 | I182: 140.896626 | J182: 1325.537404 | K182: 42.99703638 | L182: 60.96496 | M182: 0 | N182: 1570.396026 | O182: 129889.77 | P182: 0.1910454945 | Q182: 0.1910454945 | S182: 1570.396026 | T182: 4901 | U182: 5.592744047 | V182: 280.79
B183: 162 | C183: 2036-02-01 | D183: 5 | E183: 2036-02-01 | F183: 31 | G183: 4932 | H183: 129889.77 | I183: 142.3795214 | J183: 1324.101098 | K183: 42.95044632 | L183: 60.96496 | M183: 0 | N183: 1570.396026 | O183: 129747.3905 | P183: 0.1890557183 | Q183: 0.1890557183 | S183: 1570.396026 | T183: 4932 | U183: 5.653974575 | V183: 277.75
B184: 163 | C184: 2036-03-01 | D184: 6 | E184: 2036-03-01 | F184: 29 | G184: 4961 | H184: 129747.3905 | I184: 232.3840635 | J184: 1236.912024 | K184: 40.13497875 | L184: 60.96496 | M184: 0 | N184: 1570.396026 | O184: 129515.0064 | P184: 0.1872130805 | Q184: 0.1872130805 | S184: 1570.396026 | T184: 4961 | U184: 5.71186149 | V184: 274.94
B185: 164 | C185: 2036-04-01 | D185: 2 | E185: 2036-04-01 | F185: 31 | G185: 4992 | H185: 129515.0064 | I185: 146.3237977 | J185: 1320.280745 | K185: 42.82652383 | L185: 60.96496 | M185: 0 | N185: 1570.396026 | O185: 129368.6826 | P185: 0.1852632197 | Q185: 0.1852632197 | S185: 1570.396026 | T185: 4992 | U185: 5.774396141 | V185: 271.96
B186: 165 | C186: 2036-05-01 | D186: 4 | E186: 2036-05-01 | F186: 30 | G186: 5022 | H186: 129368.6826 | I186: 191.9946659 | J186: 1276.038422 | K186: 41.39797843 | L186: 60.96496 | M186: 0 | N186: 1570.396026 | O186: 129176.6879 | P186: 0.1833955958 | Q186: 0.1833955958 | S186: 1570.396026 | T186: 5022 | U186: 5.835565339 | V186: 269.11
B187: 166 | C187: 2036-06-01 | D187: 7 | E187: 2036-06-02 | F187: 32 | G187: 5054 | H187: 129176.6879 | I187: 105.8051574 | J187: 1359.533129 | K187: 44.09277975 | L187: 60.96496 | M187: 0 | N187: 1570.396026 | O187: 129070.8828 | P187: 0.1814242111 | Q187: 0.1814242111 | S187: 1570.396026 | T187: 5054 | U187: 5.901526866 | V187: 266.1
B188: 167 | C188: 2036-07-01 | D188: 2 | E188: 2036-07-01 | F188: 29 | G188: 5083 | H188: 129070.8828 | I188: 1809.43866 | J188: 1230.462719 | K188: 39.92571349 | L188: 60.96496 | M188: 0 | N188: 3140.792052 | O188: 127261.4441 | P188: 0.359311908 | Q188: 0.179655954 | S188: 3140.792052 | T188: 5083 | U188: 5.961948288 | V188: 526.81
B189: 168 | C189: 2036-08-01 | D189: 5 | E189: 2036-08-01 | F189: 31 | G189: 5114 | H189: 127261.4441 | I189: 170.0418765 | J189: 1297.307848 | K189: 42.08134193 | L189: 60.96496 | M189: 0 | N189: 1570.396026 | O189: 127091.4022 | P189: 0.1777848021 | Q189: 0.1777848021 | S189: 1570.396026 | T189: 5114 | U189: 6.027220941 | V189: 260.55
B190: 169 | C190: 2036-09-01 | D190: 1 | E190: 2036-09-01 | F190: 31 | G190: 5145 | H190: 127091.4022 | I190: 171.8315171 | J190: 1295.574435 | K190: 42.02511445 | L190: 60.96496 | M190: 0 | N190: 1570.396026 | O190: 126919.5707 | P190: 0.1759331387 | Q190: 0.1759331387 | S190: 1570.396026 | T190: 5145 | U190: 6.093208213 | V190: 257.73
B191: 170 | C191: 2036-10-01 | D191: 3 | E191: 2036-10-01 | F191: 30 | G191: 5175 | H191: 126919.5707 | I191: 216.935394 | J191: 1251.88141 | K191: 40.61426263 | L191: 60.96496 | M191: 0 | N191: 1570.396026 | O191: 126702.6353 | P191: 0.1741595706 | Q191: 0.1741595706 | S191: 1570.396026 | T191: 5175 | U191: 6.157754644 | V191: 255.03
B192: 171 | C192: 2036-11-01 | D192: 6 | E192: 2036-11-01 | F192: 31 | G192: 5206 | H192: 126702.6353 | I192: 175.9231743 | J192: 1291.61133 | K192: 41.8965615 | L192: 60.96496 | M192: 0 | N192: 1570.396026 | O192: 126526.7121 | P192: 0.1723456647 | Q192: 0.1723456647 | S192: 1570.396026 | T192: 5206 | U192: 6.225171026 | V192: 252.27
B193: 172 | C193: 2036-12-01 | D193: 1 | E193: 2036-12-01 | F193: 30 | G193: 5236 | H193: 126526.7121 | I193: 1791.332127 | J193: 1248.006417 | K193: 40.48854789 | L193: 60.96496 | M193: 0 | N193: 3140.792052 | O193: 124735.38 | P193: 0.3412165234 | Q193: 0.1706082617 | S193: 3140.792052 | T193: 5236 | U193: 6.291115362 | V193: 499.24
B194: 173 | C194: 2037-01-01 | D194: 4 | E194: 2037-01-01 | F194: 31 | G194: 5267 | H194: 124735.38 | I194: 196.6279565 | J194: 1271.557057 | K194: 41.24605228 | L194: 60.96496 | M194: 0 | N194: 1570.396026 | O194: 124538.7521 | P194: 0.1688313433 | Q194: 0.1688313433 | S194: 1570.396026 | T194: 5267 | U194: 6.359991805 | V194: 246.92
B195: 174 | C195: 2037-02-01 | D195: 7 | E195: 2037-02-02 | F195: 32 | G195: 5299 | H195: 124538.7521 | I195: 156.2006818 | J195: 1310.720704 | K195: 42.50968076 | L195: 60.96496 | M195: 0 | N195: 1570.396026 | O195: 124382.5514 | P195: 0.1670165149 | Q195: 0.1670165149 | S195: 1570.396026 | T195: 5299 | U195: 6.431881115 | V195: 244.16
B196: 175 | C196: 2037-03-01 | D196: 7 | E196: 2037-03-02 | F196: 28 | G196: 5327 | H196: 124382.5514 | I196: 327.5908813 | J196: 1144.691659 | K196: 37.1485258 | L196: 60.96496 | M196: 0 | N196: 1570.396026 | O196: 124054.9605 | P196: 0.16544455 | Q196: 0.16544455 | S196: 1570.396026 | T196: 5327 | U196: 6.495450527 | V196: 241.77
B197: 176 | C197: 2037-04-01 | D197: 3 | E197: 2037-04-01 | F197: 30 | G197: 5357 | H197: 124054.9605 | I197: 246.1073829 | J197: 1223.626096 | K197: 39.69758736 | L197: 60.96496 | M197: 0 | N197: 1570.396026 | O197: =IF(B197=J$8,0,IF(B197>J$8,"",H197-I197)) -> 123808.8531 | P197: 0.1637767166 | Q197: 0.1637767166 | S197: 1570.396026 | T197: 5357 | U197: 6.564257982 | V197: 239.23
B198: 177 | C198: 2037-05-01 | D198: 5 | E198: 2037-05-01 | F198: 30 | G198: 5387 | H198: 123808.8531 | I198: 248.6136372 | J198: 1221.198596 | K198: 39.618833 | L198: 60.96496 | M198: 0 | N198: 1570.396026 | O198: =IF(B198=J$8,0,IF(B198>J$8,"",H198-I198)) -> 123560.2395 | P198: 0.1621256965 | Q198: 0.1621256965 | S198: 1570.396026 | T198: 5387 | U198: 6.633794326 | V198: 236.73
B199: 178 | C199: 2037-06-01 | D199: 1 | E199: 2037-06-01 | F199: 31 | G199: 5418 | H199: 123560.2395 | I199: 208.9959643 | J199: 1259.577631 | K199: 40.8574704 | L199: 60.96496 | M199: 0 | N199: 1570.396026 | O199: =IF(B199=J$8,0,IF(B199>J$8,"",H199-I199)) -> 123351.2435 | P199: 0.1604371257 | Q199: 0.1604371257 | S199: 1570.396026 | T199: 5418 | U199: 6.70642249 | V199: 234.16
B200: 179 | C200: 2037-07-01 | D200: 3 | E200: 2037-07-01 | F200: 30 | G200: 5448 | H200: 123351.2435 | I200: 1823.669768 | J200: 1216.684927 | K200: 39.47239792 | L200: 60.96496 | M200: 0 | N200: 3140.792052 | O200: 121527.5737 | P200: 0.3176395436 | Q200: 0.1588197718 | S200: 3140.792052 | T200: 5448 | U200: 6.777464808 | V200: 463.42
B201: 180 | C201: 2037-08-01 | D201: 6 | E201: 2037-08-01 | F201: 31 | G201: 5479 | H201: 121527.5737 | I201: 230.389172 | J201: 1238.856562 | K201: 40.18533202 | L201: 60.96496 | M201: 0 | N201: 1570.396026 | O201: 121297.1846 | P201: 0.1571656328 | Q201: 0.1571656328 | S201: 1570.396026 | T201: 5479 | U201: 6.851665906 | V201: 229.2
B202: 181 | C202: 2037-09-01 | D202: 2 | E202: 2037-09-01 | F202: 31 | G202: 5510 | H202: 121297.1846 | I202: 232.8139501 | J202: 1236.507966 | K202: 40.10914959 | L202: 60.96496 | M202: 0 | N202: 1570.396026 | O202: 121064.3706 | P202: 0.155528722 | Q202: 0.155528722 | S202: 1570.396026 | T202: 5510 | U202: 6.926679374 | V202: 226.72
B203: 182 | C203: 2037-10-01 | D203: 4 | E203: 2037-10-01 | F203: 30 | G203: 5540 | H203: 121064.3706 | I203: 276.5622957 | J203: 1194.128172 | K203: 38.7405986 | L203: 60.96496 | M203: 0 | N203: 1570.396026 | O203: 120787.8083 | P203: 0.1539608493 | Q203: 0.1539608493 | S203: 1570.396026 | T203: 5540 | U203: 7.000054912 | V203: 224.34
B204: 183 | C204: 2037-11-01 | D204: 7 | E204: 2037-11-02 | F204: 32 | G204: 5572 | H204: 120787.8083 | I204: 196.9582047 | J204: 1271.243516 | K204: 41.22934497 | L204: 60.96496 | M204: 0 | N204: 1570.396026 | O204: 120590.8501 | P204: 0.1523058691 | Q204: 0.1523058691 | S204: 1570.396026 | T204: 5572 | U204: 7.079179089 | V204: 221.83
... 178 more rows
